fUST/lending_fUST_20240714
["ID","MTS","AMOUNT","RATE_DAILY","PERIOD"]
[331959458,1720899137279,273.37336231,9.9e-05,2]
[331959459,1720899145646,273.37336231,9.9e-05,2]
[331959461,1720899154921,273.37336231,9.9e-05,2]
[331959462,1720899162785,273.37336231,9.9e-05,2]
[331959463,1720899170943,273.37336231,9.9e-05,2]
[331959464,1720899178760,273.37336231,9.9e-05,2]
[331959465,1720899186912,273.37336231,9.9e-05,2]
[331959468,1720899194775,273.37336231,9.9e-05,2]
[331959469,1720899198886,5871.85052297,9.9e-05,2]
[331959470,1720899232619,1014.02202827,0.00012,2]
[331959480,1720899516262,3529.11519136,0.00014545,2]
[331959482,1720899691374,12470.36033075,0.00016255,2]
[331959484,1720899877499,8103.97273755,0.00016255,2]
[331959486,1720899930342,-293.96397392,0.00016255,2]
[331959487,1720900002822,492.98180621,0.00014999,2]
[331959488,1720900022534,667.80307677,0.00014999,2]
[331959489,1720900028140,-480.89692261,0.00016255,2]
[331959490,1720900028163,-1500.0,0.00016255,2]
[331959491,1720900028185,-300.0,0.00017906,2]
[331959492,1720900028209,-300.0,0.00017906,2]
[331959493,1720900028233,-4892.27232008,0.00017907,2]
[331959494,1720900032095,-5476.79623176,0.00017907,2]
[331959495,1720900032146,-3794.60881673,0.00017907,2]
[331959496,1720900039119,-264.82305487,0.00017907,2]
[331959497,1720900040100,-772.8026275,0.00017907,2]
[331959498,1720900042102,-9698.69694906,0.00017907,2]
[331959499,1720900042125,-242.312112,0.00017938,2]
[331959500,1720900042268,-458.3571276,0.00017939,2]
[331959501,1720900042290,-250.0,0.00017975,2]
[331959502,1720900042312,-167.097464,0.00018276,2]
[331959503,1720900042334,-167.097464,0.00018356,2]
[331959504,1720900042357,-3000.0,0.00018365,2]
[331959505,1720900042378,-167.097464,0.00018435,2]
[331959506,1720900042399,-167.097464,0.00018514,2]
[331959507,1720900042420,-322.87673881,0.00018546,2]
[331959508,1720900096781,9424.03256186,0.00014998,2]
[331959509,1720900115017,5416.061756,0.00014998,2]
[331959510,1720900132671,886.30497612,0.00014999,2]
[331959511,1720900140696,5507.5385206,0.00014998,2]
[331959512,1720900147146,-267.45577997,0.00016255,2]
[331959513,1720900147167,-522.39459507,0.00016255,7]
[331959514,1720900147187,-1021.08658069,0.00018546,2]
[331959515,1720900147208,-167.097464,0.00018594,2]
[331959516,1720900147228,-167.097464,0.00018673,2]
[331959517,1720900147248,-167.097464,0.00018752,2]
[331959518,1720900147267,-167.097464,0.00018832,2]
[331959519,1720900147287,-360.62808166,0.00018899,7]
[331959520,1720900147308,-167.097464,0.00018911,2]
[331959521,1720900147328,-167.097464,0.00018991,2]
[331959522,1720900147348,-250.0,0.00019041,2]
[331959523,1720900147370,-167.097464,0.0001907,2]
[331959524,1720900147390,-167.097464,0.00019149,2]
[331959525,1720900147413,-167.097464,0.00019229,2]
[331959526,1720900147435,-1041.66200346,0.00019708,2]
[331959527,1720900147455,-300.0,0.00019898,2]
[331959528,1720900147476,-1601.64366638,0.00019899,2]
[331959529,1720900147497,-300.0,0.00019899,2]
[331959530,1720900147517,-4147.02586181,0.000199,2]
[331959531,1720900147536,-500.0,0.00019989,2]
[331959532,1720900147556,-500.0,0.00019989,2]
[331959533,1720900147576,-500.0,0.00019989,2]
[331959534,1720900147596,-485.77486902,0.00019989,2]
[331959535,1720900147613,-500.0,0.00019989,2]
[331959536,1720900147631,-585.12149945,0.00019989,2]
[331959537,1720900147650,-295.56385143,0.00019989,2]
[331959538,1720900147670,-500.0,0.00019989,2]
[331959539,1720900147689,-303.76552302,0.00019989,2]
[331959540,1720900147711,-23078.52454223,0.0001999,2]
[331959541,1720900149214,-22672.70558657,0.0001999,2]
[331959542,1720900149236,-643.65566068,0.00019999,2]
[331959543,1720900149259,-500.0,0.00019999,2]
[331959544,1720900149280,-545.28424896,0.00019999,2]
[331959545,1720900149302,-535.75419758,0.00019999,2]
[331959546,1720900149323,-139259.80377231,0.0002,2]
[331959547,1720900149344,-151.18583801,0.0002,2]
[331959548,1720900149364,-1500.0,0.00021095,2]
[331959549,1720900149386,-828.65736599,0.00021095,2]
[331959550,1720900149408,-165.642633,0.00021096,2]
[331959551,1720900149428,-521.683609,0.00021096,2]
[331959552,1720900149449,-4147.02586181,0.00021133,2]
[331959553,1720900149472,-420.0,0.00021669,2]
[331959554,1720900149493,-420.0,0.00021889,2]
[331959555,1720900149515,-173.47449449,0.00021917,2]
[331959556,1720900149650,-17262.75315919,0.00022022,2]
[331959557,1720900149672,-4147.02586181,0.00022366,2]
[331959558,1720900149694,-480.75899375,0.0002243,2]
[331959559,1720900149715,-22875.6150644,0.0002247,3]
[331959560,1720900149739,-166.2105848,0.0002248,2]
[331959561,1720900149760,-166.2105848,0.0002248,2]
[331959562,1720900149798,-14728.23156826,0.00022941,2]
[331959563,1720900149825,-656.77900135,0.00022942,2]
[331959564,1720900149849,-313.3243183,0.000234,2]
[331959565,1720900149872,-357.01441577,0.00023407,2]
[331959566,1720900149899,-162.367878,0.0002353,2]
[331959567,1720900149924,-587.0,0.00023598,2]
[331959568,1720900149951,-4147.02586181,0.00023598,2]
[331959569,1720900149976,-357.01441577,0.00023661,2]
[331959570,1720900161147,480.75899375,0.00021917,2]
[331959571,1720900166114,710.62866484,0.00018179,2]
[331959572,1720900167116,208.88287887,0.0002037,2]
[331959573,1720900168114,-5032.7826163,0.00023827,2]
[331959574,1720900168135,-357.01441577,0.00023944,2]
[331959575,1720900168157,-587.0,0.00024078,2]
[331959576,1720900168178,-5032.7826163,0.00024101,2]
[331959577,1720900168200,-1601.64366634,0.00024185,2]
[331959578,1720900168221,-150.0,0.00024202,2]
[331959579,1720900168243,-357.01441577,0.00024307,2]
[331959580,1720900168264,-4436.25035927,0.00024372,2]
[331959588,1720900204350,273.37336231,9.9e-05,2]
[331959589,1720900225698,1044.32741318,0.00023453,2]
[331959590,1720900227908,1436.35994433,0.00023453,2]
[331959591,1720900228015,225.9011813,0.0002037,2]
[331959611,1720900232874,-241.86213051,0.00023866,2]
[331959612,1720900232886,-31.5112318,0.00023965,2]
[331959648,1720900238691,-268.4887682,0.00023965,2]
[331959650,1720900238700,-3077.67417499,0.00023966,2]
[331959652,1720900238709,-878.33419801,0.00024547,3]
[331959653,1720900238719,-176.12461105,0.00024646,2]
[331959654,1720900238728,-2025.83876538,0.00024647,3]
[331959655,1720900238740,-20849.77629902,0.00024647,3]
[331959657,1720900238749,-91502.4602577,0.00024647,3]
[331959659,1720900238762,-450.55896248,0.00024656,2]
[331959661,1720900238772,-500.0,0.00024656,2]
[331959663,1720900238781,-381.69897428,0.00024656,2]
[331959665,1720900238790,-225.02793831,0.00024656,2]
[331959667,1720900238799,-500.0,0.00024657,2]
[331959669,1720900238809,-500.0,0.00024657,2]
[331959671,1720900238818,-500.0,0.00024657,2]
[331959673,1720900238827,-500.0,0.00024657,2]
[331959675,1720900238839,-542.81994659,0.00024657,2]
[331959677,1720900238848,-500.0,0.00024657,2]
[331959679,1720900238860,-500.0,0.00024657,2]
[331959680,1720900238869,-500.0,0.00024657,2]
[331959681,1720900238878,-500.0,0.00024657,2]
[331959682,1720900238888,-500.0,0.00024657,2]
[331959683,1720900238897,-500.0,0.00024657,2]
[331959684,1720900238906,-500.0,0.00024657,2]
[331959685,1720900238915,-500.0,0.00024657,2]
[331959686,1720900238925,-500.0,0.00024657,2]
[331959687,1720900238933,-500.0,0.00024657,2]
[331959688,1720900238942,-500.0,0.00024657,2]
[331959689,1720900238952,-500.0,0.00024657,2]
[331959690,1720900238963,-500.0,0.00024657,2]
[331959691,1720900238975,-500.0,0.00024657,2]
[331959692,1720900238986,-527.41084358,0.00024657,2]
[331959693,1720900238996,-500.0,0.00024657,2]
[331959694,1720900239007,-500.0,0.00024657,2]
[331959695,1720900239017,-500.0,0.00024657,2]
[331959696,1720900239026,-500.0,0.00024657,2]
[331959697,1720900239036,-508.68677257,0.00024657,2]
[331959698,1720900239048,-500.0,0.00024657,2]
[331959699,1720900239058,-555.50872868,0.00024657,2]
[331959700,1720900239067,-500.0,0.00024657,2]
[331959701,1720900239077,-500.0,0.00024657,2]
[331959702,1720900239089,-500.0,0.00024657,2]
[331959703,1720900239099,-500.0,0.00024657,2]
[331959704,1720900239111,-506.93444781,0.00024657,2]
[331959705,1720900239120,-500.0,0.00024657,2]
[331959706,1720900239131,-501.58798753,0.00024657,2]
[331959707,1720900239140,-500.0,0.00024657,2]
[331959708,1720900239150,-205.40007086,0.00024657,2]
[331959709,1720900239160,-289.99420105,0.00024657,2]
[331959710,1720900239170,-500.0,0.00024657,2]
[331959711,1720900239179,-500.0,0.00024657,2]
[331959712,1720900239188,-500.0,0.00024657,2]
[331959713,1720900239198,-500.0,0.00024657,2]
[331959714,1720900239210,-500.0,0.00024657,2]
[331959715,1720900239220,-500.0,0.00024657,2]
[331959716,1720900239231,-500.0,0.00024657,2]
[331959717,1720900239243,-505.19967085,0.00024657,2]
[331959718,1720900239254,-500.0,0.00024657,2]
[331959719,1720900239264,-500.0,0.00024657,2]
[331959720,1720900239274,-500.0,0.00024657,2]
[331959721,1720900239284,-500.0,0.00024657,2]
[331959722,1720900239293,-500.0,0.00024657,2]
[331959723,1720900239302,-500.0,0.00024657,2]
[331959724,1720900239311,-500.0,0.00024657,2]
[331959725,1720900239321,-502.96931108,0.00024657,2]
[331959726,1720900239330,-500.0,0.00024657,2]
[331959727,1720900239414,-500.0,0.00024657,2]
[331959728,1720900239441,-501.87432441,0.00024657,2]
[331959729,1720900239451,-500.0,0.00024657,2]
[331959730,1720900239460,-500.0,0.00024657,2]
[331959731,1720900239470,-500.0,0.00024657,2]
[331959732,1720900239479,-500.0,0.00024657,2]
[331959733,1720900239489,-500.0,0.00024657,2]
[331959734,1720900239498,-500.0,0.00024657,2]
[331959735,1720900239507,-500.0,0.00024657,2]
[331959736,1720900239517,-500.0,0.00024657,2]
[331959737,1720900239526,-500.0,0.00024657,2]
[331959738,1720900239535,-500.0,0.00024657,2]
[331959739,1720900239544,-500.0,0.00024657,2]
[331959740,1720900239553,-500.0,0.00024657,2]
[331959741,1720900239562,-500.0,0.00024657,2]
[331959742,1720900239571,-500.0,0.00024657,2]
[331959743,1720900239581,-500.0,0.00024657,2]
[331959744,1720900239590,-500.0,0.00024657,2]
[331959745,1720900239599,-500.0,0.00024657,2]
[331959746,1720900239609,-500.0,0.00024657,2]
[331959747,1720900239619,-500.0,0.00024657,2]
[331959748,1720900239628,-500.0,0.00024657,2]
[331959749,1720900239637,-500.0,0.00024657,2]
[331959750,1720900239647,-500.0,0.00024657,2]
[331959751,1720900239656,-500.0,0.00024657,2]
[331959752,1720900239665,-500.0,0.00024657,2]
[331959753,1720900239675,-500.0,0.00024657,2]
[331959754,1720900239684,-500.0,0.00024657,2]
[331959755,1720900239694,-500.0,0.00024657,2]
[331959756,1720900239704,-500.0,0.00024657,2]
[331959757,1720900239714,-617.38,0.00024657,2]
[331959758,1720900239724,-500.0,0.00024657,2]
[331959759,1720900239733,-503.18513919,0.00024657,2]
[331959760,1720900239742,-500.0,0.00024657,2]
[331959761,1720900239752,-500.0,0.00024657,2]
[331959762,1720900239766,-500.0,0.00024657,2]
[331959763,1720900239776,-500.0,0.00024657,2]
[331959764,1720900239785,-500.0,0.00024657,2]
[331959765,1720900239795,-500.0,0.00024657,2]
[331959766,1720900239804,-500.0,0.00024657,2]
[331959767,1720900239814,-500.0,0.00024657,2]
[331959768,1720900239823,-524.71451294,0.00024657,2]
[331959769,1720900239833,-500.0,0.00024657,2]
[331959770,1720900239843,-500.0,0.00024657,2]
[331959771,1720900239852,-500.0,0.00024657,2]
[331959772,1720900239862,-500.0,0.00024657,2]
[331959773,1720900239870,-500.0,0.00024657,2]
[331959774,1720900239880,-500.0,0.00024657,2]
[331959775,1720900239889,-500.0,0.00024657,2]
[331959776,1720900239898,-500.0,0.00024657,2]
[331959777,1720900239907,-500.0,0.00024657,2]
[331959778,1720900239916,-442.70657641,0.00024657,2]
[331959779,1720900239926,-500.0,0.00024657,2]
[331959780,1720900239935,-242.6987117,0.00024657,2]
[331959781,1720900239944,-500.0,0.00024657,2]
[331959782,1720900239954,-500.0,0.00024657,2]
[331959783,1720900239963,-500.0,0.00024657,2]
[331959784,1720900239973,-500.0,0.00024657,2]
[331959785,1720900239982,-500.0,0.00024657,2]
[331959786,1720900239991,-500.0,0.00024657,2]
[331959787,1720900240000,-600.62,0.00024657,2]
[331959788,1720900240009,-500.0,0.00024657,2]
[331959789,1720900240019,-500.0,0.00024657,2]
[331959790,1720900240028,-500.0,0.00024657,2]
[331959791,1720900240037,-500.0,0.00024657,2]
[331959792,1720900240047,-500.0,0.00024657,2]
[331959793,1720900240057,-500.0,0.00024657,2]
[331959794,1720900240066,-500.0,0.00024657,2]
[331959795,1720900240075,-500.0,0.00024657,2]
[331959796,1720900240084,-500.0,0.00024657,2]
[331959797,1720900240093,-500.0,0.00024657,2]
[331959798,1720900240102,-500.0,0.00024657,2]
[331959799,1720900240111,-500.0,0.00024657,2]
[331959800,1720900240120,-500.0,0.00024657,2]
[331959801,1720900240131,-500.0,0.00024657,2]
[331959802,1720900240140,-300.0,0.00024657,2]
[331959803,1720900240149,-500.0,0.00024657,2]
[331959804,1720900240158,-500.0,0.00024657,2]
[331959805,1720900240167,-500.0,0.00024657,2]
[331959806,1720900240176,-500.0,0.00024657,2]
[331959807,1720900240185,-500.0,0.00024657,2]
[331959808,1720900240194,-500.0,0.00024657,2]
[331959809,1720900240203,-500.0,0.00024657,2]
[331959810,1720900240213,-517.89302532,0.00024657,2]
[331959811,1720900240224,-500.0,0.00024657,2]
[331959813,1720900240234,-500.0,0.00024657,2]
[331959816,1720900240243,-500.0,0.00024657,2]
[331959817,1720900240253,-500.0,0.00024657,2]
[331959819,1720900240262,-500.0,0.00024657,2]
[331959821,1720900240271,-500.0,0.00024657,2]
[331959822,1720900240280,-500.0,0.00024657,2]
[331959823,1720900240289,-500.0,0.00024657,2]
[331959824,1720900240299,-500.0,0.00024657,2]
[331959826,1720900240307,-500.0,0.00024657,2]
[331959828,1720900240317,-500.0,0.00024657,2]
[331959829,1720900240327,-500.0,0.00024657,2]
[331959831,1720900240336,-500.0,0.00024657,2]
[331959832,1720900240345,-500.0,0.00024657,2]
[331959833,1720900240355,-500.0,0.00024657,2]
[331959834,1720900240367,-514.137114,0.00024657,2]
[331959835,1720900240376,-500.0,0.00024657,2]
[331959836,1720900240387,-500.0,0.00024657,2]
[331959837,1720900240399,-500.0,0.00024657,2]
[331959838,1720900240409,-500.25988635,0.00024657,2]
[331959839,1720900240420,-500.0,0.00024657,2]
[331959840,1720900240431,-505.01159986,0.00024657,2]
[331959841,1720900240441,-500.0,0.00024657,2]
[331959842,1720900240451,-500.0,0.00024657,2]
[331959843,1720900240463,-500.0,0.00024657,2]
[331959845,1720900240473,-500.0,0.00024657,2]
[331959847,1720900240483,-500.0,0.00024657,2]
[331959849,1720900240493,-506.86817705,0.00024657,2]
[331959851,1720900240502,-500.0,0.00024657,2]
[331959852,1720900240513,-589.60833578,0.00024657,2]
[331959854,1720900240523,-500.0,0.00024657,2]
[331959856,1720900240533,-500.0,0.00024657,2]
[331959858,1720900240544,-649.33706745,0.00024657,2]
[331959859,1720900240555,-500.0,0.00024657,2]
[331959860,1720900240567,-500.0,0.00024657,2]
[331959862,1720900240578,-500.0,0.00024657,2]
[331959864,1720900240588,-500.0,0.00024657,2]
[331959866,1720900240598,-500.0,0.00024657,2]
[331959868,1720900240608,-500.0,0.00024657,2]
[331959870,1720900240617,-500.0,0.00024657,2]
[331959872,1720900240628,-500.0,0.00024657,2]
[331959874,1720900240637,-500.0,0.00024657,2]
[331959877,1720900240647,-500.0,0.00024657,2]
[331959879,1720900240657,-500.0,0.00024657,2]
[331959881,1720900240667,-500.0,0.00024657,2]
[331959883,1720900240676,-500.0,0.00024657,2]
[331959885,1720900240686,-500.0,0.00024657,2]
[331959887,1720900240695,-500.0,0.00024657,2]
[331959889,1720900240705,-500.0,0.00024657,2]
[331959891,1720900240714,-500.0,0.00024657,2]
[331959893,1720900240725,-500.0,0.00024657,2]
[331959895,1720900240736,-500.0,0.00024657,2]
[331959897,1720900240745,-500.0,0.00024657,2]
[331959899,1720900240758,-500.0,0.00024657,2]
[331959901,1720900240770,-599.143082,0.00024657,2]
[331959903,1720900240780,-500.0,0.00024657,2]
[331959905,1720900240789,-500.0,0.00024657,2]
[331959907,1720900240799,-507.87644932,0.00024657,2]
[331959909,1720900240809,-1021.18,0.00024657,2]
[331959911,1720900240819,-500.0,0.00024657,2]
[331959912,1720900240830,-500.9501798,0.00024657,2]
[331959914,1720900240842,-500.0,0.00024657,2]
[331959916,1720900240851,-500.0,0.00024657,2]
[331959918,1720900240861,-500.0,0.00024657,2]
[331959920,1720900240871,-500.0,0.00024657,2]
[331959922,1720900240880,-500.0,0.00024657,2]
[331959924,1720900240890,-500.0,0.00024657,2]
[331959926,1720900240899,-500.0,0.00024657,2]
[331959928,1720900240909,-520.84573661,0.00024657,2]
[331959930,1720900240918,-500.0,0.00024657,2]
[331959932,1720900240927,-500.0,0.00024657,2]
[331959934,1720900240937,-500.0,0.00024657,2]
[331959936,1720900240947,-500.0,0.00024657,2]
[331959938,1720900240957,-514.76384233,0.00024657,2]
[331959940,1720900240967,-500.0,0.00024657,2]
[331959942,1720900240976,-500.0,0.00024657,2]
[331959944,1720900240985,-500.0,0.00024657,2]
[331959946,1720900240995,-1500.0,0.00024657,2]
[331959948,1720900241004,-500.0,0.00024657,2]
[331959950,1720900241014,-500.76005384,0.00024657,2]
[331959952,1720900241023,-365.0713794,0.00024657,2]
[331959954,1720900241032,-531.39,0.00024657,2]
[331959955,1720900241041,-500.0,0.00024657,2]
[331959957,1720900241051,-500.0,0.00024657,2]
[331959959,1720900241061,-500.0,0.00024657,2]
[331959961,1720900241071,-500.59434519,0.00024657,2]
[331959963,1720900241081,-500.0,0.00024657,2]
[331959965,1720900241090,-500.0,0.00024657,2]
[331959967,1720900241099,-500.0,0.00024657,2]
[331959969,1720900241109,-548.64790125,0.00024657,2]
[331959971,1720900241119,-500.0,0.00024657,2]
[331959973,1720900241128,-500.0,0.00024657,2]
[331959975,1720900241138,-500.0,0.00024657,2]
[331959977,1720900241147,-500.0,0.00024657,2]
[331959979,1720900241157,-500.0,0.00024657,2]
[331959981,1720900241166,-280.29,0.00024657,2]
[331959983,1720900241175,-502.66408238,0.00024657,2]
[331959986,1720900241185,-530.48525188,0.00024657,2]
[331959988,1720900241194,-500.0,0.00024657,2]
[331959990,1720900241204,-500.0,0.00024657,2]
[331959992,1720900241213,-500.0,0.00024657,2]
[331959994,1720900241225,-500.0,0.00024657,2]
[331959996,1720900241234,-500.0,0.00024657,2]
[331959998,1720900241243,-500.0,0.00024657,2]
[331960000,1720900241253,-500.0,0.00024657,2]
[331960001,1720900241263,-500.0,0.00024657,2]
[331960002,1720900241274,-500.0,0.00024657,2]
[331960003,1720900241282,-500.0,0.00024657,2]
[331960004,1720900241292,-500.0,0.00024657,2]
[331960005,1720900241301,-500.0,0.00024657,2]
[331960006,1720900241310,-500.0,0.00024657,2]
[331960007,1720900241319,-500.0,0.00024657,2]
[331960008,1720900241328,-500.0,0.00024657,2]
[331960009,1720900241337,-500.0,0.00024657,2]
[331960010,1720900241346,-500.0,0.00024657,2]
[331960011,1720900241356,-500.0,0.00024657,2]
[331960012,1720900241365,-500.0,0.00024657,2]
[331960013,1720900241374,-482.03917732,0.00024657,2]
[331960018,1720900241457,-500.0,0.00024657,2]
[331960020,1720900241466,-476.06199456,0.00024657,2]
[331960022,1720900241475,-500.0,0.00024657,2]
[331960024,1720900241485,-500.0,0.00024657,2]
[331960026,1720900241494,-500.0,0.00024657,2]
[331960028,1720900241503,-500.0,0.00024657,2]
[331960030,1720900241512,-500.0,0.00024657,2]
[331960032,1720900241521,-500.0,0.00024657,2]
[331960034,1720900241530,-500.0,0.00024657,2]
[331960036,1720900241539,-1948.32,0.00024657,2]
[331960038,1720900241549,-500.0,0.00024657,2]
[331960040,1720900241557,-500.0,0.00024657,2]
[331960042,1720900241566,-500.0,0.00024657,2]
[331960044,1720900241576,-507.18807949,0.00024657,2]
[331960046,1720900241585,-500.0,0.00024657,2]
[331960048,1720900241594,-500.0,0.00024657,2]
[331960050,1720900241603,-500.0,0.00024657,2]
[331960052,1720900241613,-500.0,0.00024657,2]
[331960054,1720900241622,-500.0,0.00024657,2]
[331960056,1720900241631,-200.0,0.00024657,2]
[331960057,1720900241640,-500.0,0.00024657,2]
[331960059,1720900241649,-500.0,0.00024657,2]
[331960061,1720900241658,-500.0,0.00024657,2]
[331960063,1720900241668,-500.0,0.00024657,2]
[331960065,1720900241677,-535.06,0.00024657,2]
[331960067,1720900241686,-500.0,0.00024657,2]
[331960069,1720900241696,-500.0,0.00024657,2]
[331960072,1720900241706,-500.0,0.00024657,2]
[331960074,1720900241717,-501.07,0.00024657,2]
[331960076,1720900241728,-579.27837627,0.00024657,2]
[331960078,1720900241737,-500.0,0.00024657,2]
[331960080,1720900241746,-500.0,0.00024657,2]
[331960082,1720900241756,-500.0,0.00024657,2]
[331960084,1720900241770,-500.0,0.00024657,2]
[331960086,1720900241779,-500.0,0.00024657,2]
[331960088,1720900241787,-500.0,0.00024657,2]
[331960090,1720900241796,-500.0,0.00024657,2]
[331960092,1720900241809,-500.0,0.00024657,2]
[331960094,1720900241819,-500.0,0.00024657,2]
[331960096,1720900241832,-500.0,0.00024657,2]
[331960098,1720900241842,-500.0,0.00024657,2]
[331960100,1720900241853,-500.0,0.00024657,2]
[331960102,1720900241863,-502.05511582,0.00024657,2]
[331960104,1720900241873,-500.0,0.00024657,2]
[331960106,1720900241882,-500.0,0.00024657,2]
[331960108,1720900241891,-483.11386601,0.00024657,2]
[331960110,1720900241900,-500.0,0.00024657,2]
[331960112,1720900241909,-534.26869041,0.00024657,2]
[331960114,1720900241920,-500.0,0.00024657,2]
[331960116,1720900241930,-500.0,0.00024657,2]
[331960118,1720900241941,-500.0,0.00024657,2]
[331960120,1720900241951,-505.27746407,0.00024657,2]
[331960123,1720900241963,-500.0,0.00024657,2]
[331960125,1720900241973,-500.0,0.00024657,2]
[331960127,1720900241982,-500.0,0.00024657,2]
[331960129,1720900241992,-503.00346228,0.00024657,2]
[331960131,1720900242001,-500.0,0.00024657,2]
[331960133,1720900242011,-500.0,0.00024657,2]
[331960134,1720900242020,-161.3704729,0.00024657,2]
[331960137,1720900242031,-500.0,0.00024657,2]
[331960139,1720900242043,-500.0,0.00024657,2]
[331960141,1720900242054,-500.0,0.00024657,2]
[331960143,1720900242064,-11293.65,0.00024657,2]
[331960144,1720900242074,-523.66,0.00024657,2]
[331960146,1720900242083,-500.0,0.00024657,2]
[331960149,1720900242093,-500.0,0.00024657,2]
[331960151,1720900242103,-500.0,0.00024657,2]
[331960153,1720900242112,-500.0,0.00024657,2]
[331960155,1720900242121,-500.0,0.00024657,2]
[331960156,1720900242131,-500.0,0.00024657,2]
[331960158,1720900242140,-500.0,0.00024657,2]
[331960160,1720900242150,-500.0,0.00024657,2]
[331960162,1720900242159,-503.47250398,0.00024657,2]
[331960164,1720900242168,-500.0,0.00024657,2]
[331960166,1720900242177,-503.81660779,0.00024657,2]
[331960168,1720900242186,-500.0,0.00024657,2]
[331960170,1720900242195,-500.0,0.00024657,2]
[331960172,1720900242204,-500.0,0.00024657,2]
[331960174,1720900242213,-500.0,0.00024657,2]
[331960176,1720900242223,-500.0,0.00024657,2]
[331960178,1720900242232,-518.23035711,0.00024657,2]
[331960180,1720900242241,-500.0,0.00024657,2]
[331960182,1720900242250,-500.0,0.00024657,2]
[331960184,1720900242259,-500.0,0.00024657,2]
[331960186,1720900242268,-500.0,0.00024657,2]
[331960187,1720900242277,-504.64272653,0.00024657,2]
[331960189,1720900242287,-199.52435898,0.00024657,2]
[331960191,1720900242295,-500.0,0.00024657,2]
[331960193,1720900242305,-500.0,0.00024657,2]
[331960195,1720900242314,-500.0,0.00024657,2]
[331960197,1720900242323,-500.0,0.00024657,2]
[331960199,1720900242333,-500.0,0.00024657,2]
[331960201,1720900242342,-1893.12,0.00024657,2]
[331960202,1720900242351,-504.68680287,0.00024657,2]
[331960204,1720900242360,-500.0,0.00024657,2]
[331960206,1720900242369,-500.0,0.00024657,2]
[331960208,1720900242380,-500.0,0.00024657,2]
[331960210,1720900242390,-500.0,0.00024657,2]
[331960212,1720900242400,-500.0,0.00024657,2]
[331960214,1720900242409,-500.0,0.00024657,2]
[331960216,1720900242418,-500.0,0.00024657,2]
[331960218,1720900242428,-500.0,0.00024657,2]
[331960220,1720900242437,-500.0,0.00024657,2]
[331960222,1720900242446,-500.0,0.00024657,2]
[331960224,1720900242455,-500.0,0.00024657,2]
[331960226,1720900242464,-500.0,0.00024657,2]
[331960228,1720900242475,-500.0,0.00024657,2]
[331960230,1720900242484,-500.0,0.00024657,2]
[331960232,1720900242493,-500.0,0.00024657,2]
[331960234,1720900242502,-500.0,0.00024657,2]
[331960235,1720900242512,-856.41,0.00024657,2]
[331960237,1720900242522,-500.0,0.00024657,2]
[331960239,1720900242531,-500.0,0.00024657,2]
[331960241,1720900242541,-500.0,0.00024657,2]
[331960243,1720900242551,-500.0,0.00024657,2]
[331960245,1720900242560,-500.0,0.00024657,2]
[331960247,1720900242569,-500.0,0.00024657,2]
[331960249,1720900242578,-628.84,0.00024657,2]
[331960250,1720900242587,-500.0,0.00024657,2]